fUST/lending_fUST_20240612
["ID","MTS","AMOUNT","RATE_DAILY","PERIOD"]
[329255258,1718202656983,-500.0,0.00016986,2]
[329255260,1718202656994,-810.15,0.00016986,2]
[329255262,1718202657006,-500.0,0.00016986,2]
[329255264,1718202657032,-609.89,0.00016986,2]
[329255266,1718202657046,-500.0,0.00016986,2]
[329255267,1718202657060,-500.0,0.00016986,2]
[329255282,1718202657272,-754.08,0.00016986,2]
[329255284,1718202657289,-500.0,0.00016986,2]
[329255286,1718202657301,-500.0,0.00016986,2]
[329255288,1718202657314,-170.77038224,0.00016986,2]
[329255289,1718202657328,-500.0,0.00016986,2]
[329255292,1718202657350,-951.59,0.00016986,2]
[329255293,1718202657362,-500.0,0.00016986,2]
[329255295,1718202657387,-500.0,0.00016986,2]
[329255297,1718202657399,-500.0,0.00016986,2]
[329255299,1718202657442,-500.0,0.00016986,2]
[329255301,1718202657456,-500.0,0.00016986,2]
[329255303,1718202657468,-500.0,0.00016986,2]
[329255305,1718202657493,-503.42106394,0.00016986,2]
[329255309,1718202657529,-500.0,0.00016986,4]
[329255312,1718202657545,-250.0,0.00016986,2]
[329255314,1718202657560,-500.0,0.00016986,2]
[329255315,1718202657571,-500.0,0.00016986,2]
[329255318,1718202657590,-500.0,0.00016986,2]
[329255320,1718202657606,-500.0,0.00016986,2]
[329255322,1718202657644,-653.19,0.00016986,2]
[329255324,1718202657670,-940.41,0.00016986,2]
[329255326,1718202657697,-908.76,0.00016986,2]
[329255328,1718202657715,-1004.92,0.00016986,2]
[329255330,1718202657740,-600.4938574,0.00016986,2]
[329255332,1718202657756,-500.0,0.00016986,2]
[329255333,1718202657771,-1609.75,0.00016986,2]
[329255335,1718202657786,-14697.19,0.00016986,2]
[329255337,1718202657797,-500.0,0.00016986,2]
[329255338,1718202657809,-500.0,0.00016986,2]
[329255340,1718202657832,-500.0,0.00016986,2]
[329255343,1718202657875,-5427.09,0.00016986,2]
[329255345,1718202657893,-2134.5,0.00016986,2]
[329255347,1718202657909,-7225.03,0.00016986,2]
[329255349,1718202657922,-500.0,0.00016986,2]
[329255351,1718202657941,-4749.88,0.00016986,2]
[329255353,1718202657960,-500.0,0.00016986,2]
[329255355,1718202657978,-500.0,0.00016986,2]
[329255357,1718202657992,-500.0,0.00016986,2]
[329255359,1718202658010,-500.0,0.00016986,2]
[329255361,1718202658023,-536.96,0.00016986,2]
[329255363,1718202658036,-500.0,0.00016986,2]
[329255365,1718202658050,-11068.85,0.00016986,2]
[329255367,1718202658060,-192.44172263,0.00016986,2]
[329255369,1718202658071,-1531.31,0.00016986,2]
[329255371,1718202658081,-315.29108027,0.00016986,2]
[329255373,1718202658091,-880.17,0.00016986,2]
[329255374,1718202658101,-500.0,0.00016986,2]
[329255376,1718202658112,-735.94,0.00016986,2]
[329255378,1718202658123,-1580.62,0.00016986,2]
[329255381,1718202658138,-500.0,0.00016986,2]
[329255382,1718202658150,-1447.79,0.00016986,2]
[329255385,1718202658165,-500.0,0.00016986,2]
[329255387,1718202658178,-500.0,0.00016986,2]
[329255389,1718202658189,-500.0,0.00016986,2]
[329255390,1718202658199,-500.0,0.00016986,2]
[329255392,1718202658210,-782.11,0.00016986,2]
[329255395,1718202658221,-500.0,0.00016986,2]
[329255397,1718202658233,-500.0,0.00016986,2]
[329255399,1718202658245,-500.0,0.00016986,2]
[329255400,1718202658255,-1011.14,0.00016986,2]
[329255403,1718202658266,-4618.06,0.00016986,2]
[329255405,1718202658277,-1409.5,0.00016986,2]
[329255407,1718202658288,-3036.67,0.00016986,2]
[329255409,1718202658299,-999.0,0.00017,2]
[329255412,1718202658322,-6380.13898042,0.00017,2]
[329255414,1718202658333,-417.62065453,0.00017023,2]
[329255416,1718202658344,-500.0,0.0001726,2]
[329255418,1718202658356,-500.0,0.0001726,2]
[329255420,1718202658367,-500.0,0.0001726,2]
[329255422,1718202658382,-500.0,0.0001726,2]
[329255424,1718202658400,-533.71,0.0001726,2]
[329255426,1718202658411,-500.0,0.0001726,2]
[329255429,1718202658423,-518.89,0.0001726,2]
[329255430,1718202658435,-566.95422011,0.0001726,2]
[329255432,1718202658447,-500.0,0.0001726,2]
[329255434,1718202658461,-600.43,0.0001726,2]
[329255437,1718202658473,-500.0,0.0001726,2]
[329255439,1718202658487,-500.0,0.0001726,2]
[329255441,1718202658499,-500.0,0.0001726,2]
[329255443,1718202658509,-183.45240142,0.0001726,2]
[329255445,1718202658520,-810.15,0.0001726,2]
[329255447,1718202658532,-500.0,0.0001726,2]
[329255448,1718202658543,-609.89,0.0001726,2]
[329255451,1718202658559,-500.0,0.0001726,2]
[329255453,1718202658577,-500.0,0.0001726,2]
[329255455,1718202658588,-754.08,0.0001726,2]
[329255457,1718202658603,-500.0,0.0001726,2]
[329255459,1718202658617,-500.0,0.0001726,2]
[329255461,1718202658628,-951.59,0.0001726,2]
[329255463,1718202658664,-500.0,0.0001726,2]
[329255465,1718202658678,-500.0,0.0001726,2]
[329255467,1718202658688,-500.0,0.0001726,2]
[329255469,1718202658702,-500.0,0.0001726,2]
[329255471,1718202658713,-500.0,0.0001726,4]
[329255473,1718202658726,-250.0,0.0001726,2]
[329255475,1718202658738,-500.0,0.0001726,2]
[329255477,1718202658749,-500.0,0.0001726,2]
[329255479,1718202658762,-653.19,0.0001726,2]
[329255481,1718202658772,-940.41,0.0001726,2]
[329255483,1718202658786,-908.76,0.0001726,2]
[329255486,1718202658797,-1004.92,0.0001726,2]
[329255488,1718202658809,-500.0,0.0001726,2]
[329255490,1718202658821,-1609.75,0.0001726,2]
[329255492,1718202658832,-14697.19,0.0001726,2]
[329255494,1718202658843,-500.0,0.0001726,2]
[329255496,1718202658855,-500.0,0.0001726,2]
[329255498,1718202658866,-5427.09,0.0001726,2]
[329255500,1718202658877,-500.0,0.0001726,2]
[329255502,1718202658888,-2134.5,0.0001726,2]
[329255503,1718202658898,-7225.03,0.0001726,2]
[329255506,1718202658914,-500.0,0.0001726,2]
[329255507,1718202658938,-4749.88,0.0001726,2]
[329255510,1718202658972,-500.0,0.0001726,2]
[329255512,1718202659037,-500.0,0.0001726,2]
[329255513,1718202659080,-500.0,0.0001726,2]
[329255514,1718202659102,-500.0,0.0001726,2]
[329255515,1718202659125,-536.96,0.0001726,2]
[329255516,1718202659160,-500.0,0.0001726,2]
[329255517,1718202659170,-11068.85,0.0001726,2]
[329255518,1718202659187,-1531.31,0.0001726,2]
[329255519,1718202659198,-880.17,0.0001726,2]
[329255521,1718202659210,-500.0,0.0001726,2]
[329255523,1718202659229,-735.94,0.0001726,2]
[329255525,1718202659256,-1580.62,0.0001726,2]
[329255526,1718202659278,-500.0,0.0001726,2]
[329255528,1718202659298,-1447.79,0.0001726,2]
[329255530,1718202659313,-500.0,0.0001726,2]
[329255532,1718202659329,-500.0,0.0001726,2]
[329255534,1718202659346,-500.0,0.0001726,2]
[329255536,1718202659365,-500.0,0.0001726,2]
[329255538,1718202659377,-782.11,0.0001726,2]
[329255539,1718202659388,-500.0,0.0001726,2]
[329255540,1718202659399,-500.0,0.0001726,2]
[329255542,1718202659414,-1011.14,0.0001726,2]
[329255544,1718202659439,-4618.06,0.0001726,2]
[329255546,1718202659460,-1409.5,0.0001726,2]
[329255547,1718202659472,-417.62065453,0.00017366,2]
[329255549,1718202659484,-587.0,0.00017531,2]
[329255551,1718202659497,-500.0,0.00017534,2]
[329255553,1718202659514,-500.0,0.00017534,2]
[329255555,1718202659531,-500.0,0.00017534,2]
[329255556,1718202659550,-533.71,0.00017534,2]
[329255558,1718202659562,-500.0,0.00017534,2]
[329255561,1718202659587,-518.89,0.00017534,2]
[329255563,1718202659640,-500.0,0.00017534,2]
[329255565,1718202659662,-600.43,0.00017534,2]
[329255566,1718202659673,-500.0,0.00017534,2]
[329255567,1718202659686,-500.0,0.00017534,2]
[329255569,1718202659709,-500.0,0.00017534,2]
[329255571,1718202659728,-810.15,0.00017534,2]
[329255572,1718202659747,-500.0,0.00017534,2]
[329255574,1718202659761,-609.89,0.00017534,2]
[329255575,1718202659776,-500.0,0.00017534,2]
[329255577,1718202659789,-500.0,0.00017534,2]
[329255579,1718202659804,-754.08,0.00017534,2]
[329255581,1718202659820,-500.0,0.00017534,2]
[329255583,1718202659840,-500.0,0.00017534,2]
[329255585,1718202659880,-951.59,0.00017534,2]
[329255587,1718202659892,-500.0,0.00017534,2]
[329255589,1718202659904,-500.0,0.00017534,2]
[329255592,1718202659923,-500.0,0.00017534,2]
[329255594,1718202659940,-453.23399143,0.00017534,2]
[329255596,1718202659959,-500.0,0.00017534,4]
[329255597,1718202659970,-250.0,0.00017534,2]
[329255599,1718202659981,-500.0,0.00017534,2]
[329255601,1718202659999,-500.0,0.00017534,2]
[329255602,1718202660013,-653.19,0.00017534,2]
[329255604,1718202660027,-940.41,0.00017534,2]
[329255607,1718202660053,-908.76,0.00017534,2]
[329255609,1718202660072,-1004.92,0.00017534,2]
[329255613,1718202660110,-500.0,0.00017534,2]
[329255615,1718202660121,-1609.75,0.00017534,2]
[329255616,1718202660145,-14697.19,0.00017534,2]
[329255618,1718202660164,-500.0,0.00017534,2]
[329255620,1718202660198,-500.0,0.00017534,2]
[329255622,1718202660211,-5427.09,0.00017534,2]
[329255624,1718202660222,-500.0,0.00017534,2]
[329255626,1718202660236,-2134.5,0.00017534,2]
[329255628,1718202660250,-7225.03,0.00017534,2]
[329255630,1718202660267,-500.0,0.00017534,2]
[329255631,1718202660318,-4749.88,0.00017534,2]
[329255634,1718202660333,-500.0,0.00017534,2]
[329255635,1718202660348,-500.0,0.00017534,2]
[329255637,1718202660361,-500.0,0.00017534,2]
[329255639,1718202660375,-500.0,0.00017534,2]
[329255641,1718202660393,-536.96,0.00017534,2]
[329255643,1718202660405,-461.4479769,0.00017534,2]
[329255645,1718202660420,-11068.85,0.00017534,2]
[329255647,1718202660454,-500.0,0.00017534,2]
[329255650,1718202660468,-1531.31,0.00017534,2]
[329255651,1718202660488,-880.17,0.00017534,2]
[329255653,1718202660503,-500.0,0.00017534,2]
[329255655,1718202660516,-735.94,0.00017534,2]
[329255657,1718202660535,-1580.62,0.00017534,2]
[329255658,1718202660545,-500.0,0.00017534,2]
[329255660,1718202660570,-1447.79,0.00017534,2]
[329255662,1718202660593,-500.0,0.00017534,2]
[329255664,1718202660606,-500.0,0.00017534,2]
[329255666,1718202660617,-500.0,0.00017534,2]
[329255668,1718202660639,-500.0,0.00017534,2]
[329255670,1718202660669,-782.11,0.00017534,2]
[329255672,1718202660682,-500.0,0.00017534,2]
[329255674,1718202660701,-500.0,0.00017534,2]
[329255675,1718202660740,-1011.14,0.00017534,2]
[329255678,1718202660752,-4618.06,0.00017534,2]
[329255680,1718202660770,-1409.5,0.00017534,2]
[329255682,1718202660782,-885.1,0.00017564,2]
[329255684,1718202660793,-153.0,0.00017689,2]
[329255685,1718202660810,-587.0,0.00017696,2]
[329255686,1718202660829,-417.62065453,0.00017708,2]
[329255687,1718202660858,-885.1,0.00017711,2]
[329255688,1718202660886,-292.5693121,0.00017798,2]
[329255689,1718202660898,-292.5693121,0.00017798,2]
[329255690,1718202660910,-124547.4547632,0.00017806,2]
[329255691,1718202660920,-500.0,0.00017808,2]
[329255692,1718202660937,-350.05257528,0.00017808,2]
[329255694,1718202660968,-500.0,0.00017808,2]
[329255696,1718202660998,-533.71,0.00017808,2]
[329255698,1718202661022,-500.0,0.00017808,2]
[329255700,1718202661058,-518.89,0.00017808,2]
[329255703,1718202661080,-500.0,0.00017808,2]
[329255704,1718202661092,-600.43,0.00017808,2]
[329255706,1718202661117,-500.0,0.00017808,2]
[329255709,1718202661161,-500.0,0.00017808,2]
[329255711,1718202661181,-500.0,0.00017808,2]
[329255713,1718202661195,-810.15,0.00017808,2]
[329255715,1718202661207,-500.0,0.00017808,2]
[329255717,1718202661218,-609.89,0.00017808,2]
[329255719,1718202661244,-500.0,0.00017808,2]
[329255721,1718202661255,-500.0,0.00017808,2]
[329255723,1718202661268,-754.08,0.00017808,2]
[329255724,1718202661281,-500.0,0.00017808,2]
[329255726,1718202661294,-500.0,0.00017808,2]
[329255728,1718202661311,-951.59,0.00017808,2]
[329255730,1718202661340,-500.0,0.00017808,2]
[329255732,1718202661352,-500.0,0.00017808,2]
[329255734,1718202661368,-500.0,0.00017808,2]
[329255736,1718202661389,-500.0,0.00017808,4]
[329255738,1718202661428,-250.0,0.00017808,2]
[329255740,1718202661440,-500.0,0.00017808,2]
[329255742,1718202661465,-500.0,0.00017808,2]
[329255744,1718202661481,-653.19,0.00017808,2]
[329255746,1718202661499,-940.41,0.00017808,2]
[329255748,1718202661514,-908.76,0.00017808,2]
[329255750,1718202661545,-1004.92,0.00017808,2]
[329255751,1718202661556,-500.0,0.00017808,2]
[329255753,1718202661576,-1609.75,0.00017808,2]
[329255755,1718202661587,-14697.19,0.00017808,2]
[329255757,1718202661604,-500.0,0.00017808,2]
[329255758,1718202661616,-500.0,0.00017808,2]
[329255759,1718202661643,-5427.09,0.00017808,2]
[329255761,1718202661657,-500.0,0.00017808,2]
[329255763,1718202661672,-2134.5,0.00017808,2]
[329255765,1718202661691,-7225.03,0.00017808,2]
[329255767,1718202661702,-500.0,0.00017808,2]
[329255769,1718202661720,-4749.88,0.00017808,2]
[329255771,1718202661733,-387.68346291,0.00017808,2]
[329255772,1718202661748,-500.0,0.00017808,2]
[329255774,1718202661764,-500.0,0.00017808,2]
[329255775,1718202661778,-500.0,0.00017808,2]
[329255777,1718202661790,-536.96,0.00017808,2]
[329255779,1718202661802,-11068.85,0.00017808,2]
[329255781,1718202661815,-500.0,0.00017808,2]
[329255782,1718202661826,-1531.31,0.00017808,2]
[329255784,1718202661838,-880.17,0.00017808,2]
[329255786,1718202661856,-500.0,0.00017808,2]
[329255787,1718202661869,-735.94,0.00017808,2]
[329255789,1718202661883,-1580.62,0.00017808,2]
[329255791,1718202661896,-500.0,0.00017808,2]
[329255794,1718202661911,-1447.79,0.00017808,2]
[329255795,1718202661924,-500.0,0.00017808,2]
[329255797,1718202661943,-500.0,0.00017808,2]
[329255799,1718202661954,-500.0,0.00017808,2]
[329255801,1718202661966,-500.0,0.00017808,2]
[329255803,1718202661978,-782.11,0.00017808,2]
[329255805,1718202661991,-500.0,0.00017808,2]
[329255807,1718202662004,-1011.14,0.00017808,2]
[329255809,1718202662015,-500.0,0.00017808,2]
[329255811,1718202662027,-4618.06,0.00017808,2]
[329255813,1718202662039,-1409.5,0.00017808,2]
[329255814,1718202662051,-153.0,0.00017808,2]
[329255816,1718202662064,-885.1,0.00017858,2]
[329255818,1718202662078,-153.0,0.00017865,2]
[329255820,1718202662096,-153.0,0.00017865,2]
[329255822,1718202662128,-10491.92816074,0.00017898,2]
[329255824,1718202662147,-2765.44251206,0.00018,2]
[329255826,1718202662162,-155.00155002,0.00018,2]
[329255828,1718202662174,-1355.61945113,0.00018,2]
[329255830,1718202662189,-476.69963654,0.00018,2]
[329255832,1718202662201,-876.82850055,0.00018,2]
[329255835,1718202662211,-155.02790502,0.00018,2]
[329255837,1718202662222,-885.1,0.00018004,2]
[329255839,1718202662233,-6061.36488938,0.0001808,2]
[329255840,1718202662244,-3336.80692105,0.00018081,2]
[329255842,1718202662254,-500.0,0.00018082,2]
[329255844,1718202662265,-500.0,0.00018082,2]
[329255846,1718202662282,-533.71,0.00018082,2]
[329255848,1718202662292,-500.0,0.00018082,2]
[329255850,1718202662308,-518.89,0.00018082,2]
[329255852,1718202662318,-151.0,0.00018082,2]
[329255854,1718202662330,-500.0,0.00018082,2]
[329255856,1718202662343,-600.43,0.00018082,2]
[329255858,1718202662364,-151.0,0.00018082,2]
[329255860,1718202662378,-500.0,0.00018082,2]
[329255861,1718202662390,-500.0,0.00018082,2]
[329255865,1718202662424,-500.0,0.00018082,2]
[329255867,1718202662440,-810.15,0.00018082,2]
[329255870,1718202662459,-500.0,0.00018082,2]
[329255872,1718202662472,-609.89,0.00018082,2]
[329255883,1718202662595,-509.92617409,0.00018082,2]
[329255884,1718202662612,-3677.7192,0.00018082,2]
[329255886,1718202662623,-500.0,0.00018082,2]
[329255889,1718202662653,-754.08,0.00018082,2]
[329255891,1718202662664,-500.0,0.00018082,2]
[329255893,1718202662675,-500.0,0.00018082,2]
[329255895,1718202662701,-151.0,0.00018082,2]
[329255897,1718202662714,-951.59,0.00018082,2]
[329255899,1718202662725,-500.0,0.00018082,2]
[329255901,1718202662737,-151.0,0.00018082,2]
[329255903,1718202662752,-340.295942,0.00018082,2]
[329255905,1718202662765,-340.295942,0.00018082,2]
[329255907,1718202662776,-500.0,0.00018082,2]
[329255909,1718202662787,-500.0,0.00018082,2]
[329255911,1718202662798,-500.0,0.00018082,4]
[329255913,1718202662810,-250.0,0.00018082,2]
[329255915,1718202662833,-500.0,0.00018082,2]
[329255918,1718202662860,-393.726737,0.00018082,2]
[329255920,1718202662872,-500.0,0.00018082,2]
[329255921,1718202662889,-393.726737,0.00018082,2]
[329255923,1718202662907,-653.19,0.00018082,2]
[329255925,1718202662924,-940.41,0.00018082,2]
[329255927,1718202662942,-908.76,0.00018082,2]
[329255928,1718202662956,-1004.92,0.00018082,2]
[329255930,1718202662983,-300.0,0.00018082,2]
[329255932,1718202662995,-500.0,0.00018082,2]
[329255934,1718202663009,-1609.75,0.00018082,2]
[329255936,1718202663035,-300.0,0.00018082,2]
[329255937,1718202663046,-14697.19,0.00018082,2]
[329255939,1718202663058,-500.0,0.00018082,2]
[329255941,1718202663072,-609.45699189,0.00018082,2]
[329255943,1718202663082,-5427.09,0.00018082,2]
[329255945,1718202663096,-2134.5,0.00018082,2]
[329255947,1718202663116,-500.0,0.00018082,2]
[329255949,1718202663127,-7225.03,0.00018082,2]
[329255950,1718202663141,-500.0,0.00018082,2]
[329255952,1718202663152,-4749.88,0.00018082,2]
[329255954,1718202663171,-500.0,0.00018082,2]
[329255957,1718202663196,-500.0,0.00018082,2]
[329255959,1718202663216,-151.0,0.00018082,2]
[329255961,1718202663226,-500.0,0.00018082,2]
[329255963,1718202663242,-499.179437,0.00018082,2]
[329255966,1718202663262,-499.179437,0.00018082,2]
[329255968,1718202663278,-536.96,0.00018082,2]
[329255970,1718202663290,-204.587525,0.00018082,2]
[329255972,1718202663307,-11068.85,0.00018082,2]
[329255974,1718202663319,-204.587525,0.00018082,2]
[329255976,1718202663332,-151.0,0.00018082,2]
[329255978,1718202663343,-500.0,0.00018082,2]
[329255980,1718202663356,-1531.31,0.00018082,2]
[329255982,1718202663367,-880.17,0.00018082,2]
[329255983,1718202663379,-500.0,0.00018082,2]
[329255985,1718202663392,-735.94,0.00018082,2]
[329255987,1718202663409,-1580.62,0.00018082,2]
[329255990,1718202663428,-151.0,0.00018082,2]
[329255991,1718202663445,-500.0,0.00018082,2]
[329255993,1718202663457,-1447.79,0.00018082,2]
[329255995,1718202663476,-500.0,0.00018082,2]
[329255997,1718202663502,-500.0,0.00018082,2]
[329255999,1718202663526,-500.0,0.00018082,2]
[329256001,1718202663543,-151.0,0.00018082,2]
[329256003,1718202663563,-151.0,0.00018082,2]
[329256006,1718202663579,-151.0,0.00018082,2]
[329256008,1718202663595,-500.0,0.00018082,2]
[329256010,1718202663611,-782.11,0.00018082,2]
[329256012,1718202663623,-500.0,0.00018082,2]
[329256013,1718202663662,-151.0,0.00018082,2]
[329256015,1718202663678,-1011.14,0.00018082,2]
[329256017,1718202663705,-500.0,0.00018082,2]
[329256018,1718202663729,-4618.06,0.00018082,2]
[329256020,1718202663742,-151.0,0.00018082,2]
[329256022,1718202663754,-1409.5,0.00018082,2]
[329256024,1718202663766,-160.0,0.00018138,2]
[329256025,1718202663778,-885.1,0.00018151,2]
[329256027,1718202663794,-5281.92082876,0.00018202,2]
[329256030,1718202663819,-1750.0,0.00018252,2]
[329256032,1718202663842,-499.0,0.00018252,2]
[329256035,1718202663898,-151.0,0.00018252,2]
[329256038,1718202663928,-151.0,0.00018252,2]
[329256041,1718202663954,-456.419218,0.00018271,2]
[329256043,1718202663974,-547.669167,0.00018271,2]
[329256044,1718202663986,-685.927486,0.00018271,2]
[329256046,1718202663998,-642.702852,0.00018271,2]
[329256048,1718202664009,-194.815119,0.00018271,2]
[329256050,1718202664030,-456.419218,0.00018271,2]
[329256051,1718202664041,-430.780096,0.00018271,2]
[329256053,1718202664053,-885.1,0.00018298,2]
[329256055,1718202664063,-600.0,0.00018328,2]
[329256057,1718202664074,-500.0,0.00018356,2]
[329256059,1718202664085,-500.0,0.00018356,2]
[329256061,1718202664096,-533.71,0.00018356,2]
[329256063,1718202664108,-598.38989292,0.00018356,2]
[329256065,1718202664125,-518.89,0.00018356,2]
[329256067,1718202664136,-500.0,0.00018356,2]
[329256069,1718202664149,-600.43,0.00018356,2]
[329256070,1718202664160,-500.0,0.00018356,2]
[329256072,1718202664172,-500.0,0.00018356,2]
[329256074,1718202664188,-500.0,0.00018356,2]
[329256076,1718202664219,-810.15,0.00018356,2]
[329256078,1718202664240,-500.0,0.00018356,2]
[329256080,1718202664250,-609.89,0.00018356,2]
[329256082,1718202664262,-500.0,0.00018356,2]
[329256084,1718202664274,-754.08,0.00018356,2]
[329256086,1718202664285,-500.0,0.00018356,2]
[329256088,1718202664296,-500.0,0.00018356,2]
[329256090,1718202664308,-951.59,0.00018356,2]
[329256092,1718202664329,-500.0,0.00018356,2]
[329256094,1718202664340,-248.98580345,0.00018356,2]
[329256096,1718202664351,-500.0,0.00018356,2]
[329256098,1718202664364,-500.0,0.00018356,4]
[329256100,1718202664375,-250.0,0.00018356,2]
[329256102,1718202664386,-500.0,0.00018356,2]
[329256104,1718202664398,-500.0,0.00018356,2]
[329256105,1718202664415,-653.19,0.00018356,2]
[329256107,1718202664428,-940.41,0.00018356,2]
[329256109,1718202664447,-908.76,0.00018356,2]
[329256111,1718202664459,-1004.92,0.00018356,2]
[329256113,1718202664471,-500.0,0.00018356,2]
[329256115,1718202664482,-1609.75,0.00018356,2]
[329256117,1718202664493,-14697.19,0.00018356,2]
[329256118,1718202664505,-500.0,0.00018356,2]
[329256120,1718202664518,-5427.09,0.00018356,2]
[329256122,1718202664533,-2134.5,0.00018356,2]
[329256124,1718202664546,-500.0,0.00018356,2]
[329256126,1718202664558,-7225.03,0.00018356,2]
[329256128,1718202664569,-500.0,0.00018356,2]
[329256130,1718202664579,-4749.88,0.00018356,2]
[329256131,1718202664591,-500.0,0.00018356,2]
[329256134,1718202664606,-500.0,0.00018356,2]
[329256136,1718202664620,-500.0,0.00018356,2]
[329256137,1718202664672,-536.96,0.00018356,2]
[329256140,1718202664692,-11068.85,0.00018356,2]
[329256142,1718202664713,-500.0,0.00018356,2]
[329256145,1718202664725,-1531.31,0.00018356,2]
[329256147,1718202664736,-880.17,0.00018356,2]
[329256149,1718202664749,-500.0,0.00018356,2]
[329256151,1718202664760,-735.94,0.00018356,2]
[329256152,1718202664770,-1580.62,0.00018356,2]
[329256154,1718202664782,-500.0,0.00018356,2]
[329256156,1718202664798,-1447.79,0.00018356,2]
[329256158,1718202664812,-500.0,0.00018356,2]
[329256160,1718202664824,-500.0,0.00018356,2]
[329256162,1718202664856,-500.0,0.00018356,2]
[329256165,1718202664876,-523.29,0.00018356,2]
[329256168,1718202664904,-782.11,0.00018356,2]
[329256170,1718202664917,-469.93867144,0.00018356,2]
[329256172,1718202664940,-1011.14,0.00018356,2]
[329256174,1718202664962,-500.0,0.00018356,2]
[329256175,1718202664977,-4618.06,0.00018356,2]
[329256178,1718202664998,-1409.5,0.00018356,2]
[329256180,1718202665019,-155.0,0.0001841,2]
[329256182,1718202665034,-647.46184063,0.00018427,2]
[329256184,1718202665045,-885.1,0.00018445,2]
[329256185,1718202665057,-456.419218,0.000185,2]
[329256186,1718202665077,-547.669167,0.000185,2]
[329256188,1718202665093,-685.927486,0.000185,2]
[329256191,1718202665124,-642.702852,0.000185,2]
[329256193,1718202665139,-456.419218,0.000185,2]
[329256196,1718202665154,-430.780096,0.000185,2]
[329256199,1718202665189,-606.91207968,0.000185,2]
[329256201,1718202665204,-153.0,0.00018511,2]
[329256203,1718202665217,-153.0,0.00018511,2]
[329256205,1718202665230,-153.0,0.00018511,2]
[329256207,1718202665260,-153.0,0.00018511,2]
[329256209,1718202665289,-153.0,0.00018511,2]
[329256210,1718202665300,-600.0,0.00018519,2]
[329256212,1718202665312,-432.803992,0.00018548,2]
[329256213,1718202665323,-166.666666,0.00018575,2]
[329256215,1718202665338,-885.1,0.00018591,2]
[329256217,1718202665355,-235.49923282,0.00018596,2]
[329256219,1718202665374,-11305.54504539,0.00018596,2]
[329256221,1718202665391,-23925.19602526,0.00018596,2]
[329256223,1718202665423,-1964.27970474,0.00018596,2]
[329256224,1718202665439,-393.726737,0.00018596,2]
[329256226,1718202665454,-393.726737,0.00018596,2]
[329256228,1718202665476,-300.0,0.00018596,2]
[329256230,1718202665488,-300.0,0.00018596,2]
[329256231,1718202665503,-272.982961,0.00018596,2]
[329256233,1718202665514,-499.179437,0.00018596,2]
[329256234,1718202665527,-499.179437,0.00018596,2]
[329256237,1718202665554,-204.587525,0.00018596,2]
[329256239,1718202665566,-204.587525,0.00018596,2]
[329256241,1718202665581,-151.0,0.00018596,2]
[329256242,1718202665593,-151.0,0.00018596,2]
[329256244,1718202665605,-289.646229,0.00018596,2]